bitfinex-derivatives/quotes_BTCF0:USTF0_20251030
["timestamp","ask_amount","ask_price","bid_price","bid_amount"]
[1761843149757,0.70792467,108130.0,108120.0,0.0564]
[1761843149947,0.70792467,108130.0,108120.0,0.4172]
[1761843150658,0.69861414,108130.0,108120.0,0.4172]
[1761843150860,0.05747171,108130.0,108120.0,0.4172]
[1761843151058,0.37767171,108130.0,108120.0,0.4172]
[1761843151258,0.37667171,108130.0,108120.0,0.4172]
[1761843152357,0.61761414,108130.0,108120.0,0.4172]
[1761843152544,0.76761414,108130.0,108120.0,0.4172]
[1761843153151,0.76761414,108130.0,108120.0,0.0564]
[1761843153351,0.79247432,108130.0,108120.0,0.0564]
[1761843153552,0.80177601,108130.0,108120.0,0.0564]
[1761843154557,0.65177601,108130.0,108120.0,0.0564]
[1761843154752,0.67177601,108130.0,108120.0,0.0564]
[1761843155963,0.65177601,108130.0,108120.0,0.0564]
[1761843156659,0.64247432,108130.0,108120.0,0.0564]
[1761843156867,0.37667171,108130.0,108120.0,0.4172]
[1761843157458,0.38614369,108130.0,108120.0,0.4172]
[1761843157666,0.37667171,108130.0,108120.0,0.4172]
[1761843158167,0.37567171,108130.0,108120.0,0.4192]
[1761843158366,0.61661414,108130.0,108120.0,0.4192]
[1761843159670,0.37567171,108130.0,108120.0,0.4192]
[1761843159968,0.61661414,108130.0,108120.0,0.4182]
[1761843160664,0.63661414,108130.0,108120.0,0.4182]
[1761843160870,0.89661414,108130.0,108120.0,0.0574]
[1761843161071,0.89761414,108130.0,108120.0,0.0564]
[1761843161372,0.0341,108120.0,108110.0,0.4172]
[1761843161556,0.29641414,108120.0,108110.0,0.4172]
[1761843162665,0.29641414,108120.0,108110.0,0.4182]
[1761843163370,0.29641414,108120.0,108110.0,0.4192]
[1761843165772,0.31641414,108120.0,108110.0,0.4192]
[1761843165974,0.61917414,108120.0,108110.0,0.4192]
[1761843166172,0.61641414,108120.0,108110.0,0.4192]
[1761843166470,0.64127432,108120.0,108110.0,0.4192]
[1761843166670,0.64629432,108120.0,108110.0,0.002]
[1761843166872,0.88723675,108120.0,108110.0,0.002]
[1761843167067,0.88999675,108120.0,108110.0,0.002]
[1761843167368,0.0341,108110.0,108100.0,0.3608]
[1761843167576,0.88657414,108110.0,108100.0,0.4172]
[1761843167872,0.88657414,108110.0,108100.0,0.3608]
[1761843168169,0.88657414,108110.0,108100.0,0.4172]
[1761843168470,0.91243432,108110.0,108100.0,0.4172]
[1761843169170,0.91243432,108110.0,108100.0,0.0564]
[1761843169868,0.0341,108100.0,108090.0,0.4172]
[1761843170172,0.62641414,108100.0,108090.0,0.0564]
[1761843171369,0.59641414,108100.0,108090.0,0.4172]
[1761843171574,0.59641414,108100.0,108090.0,0.4182]
[1761843172368,0.6055058,108100.0,108090.0,0.4182]
[1761843173973,0.6055058,108100.0,108090.0,0.4192]
[1761843174163,0.3055058,108100.0,108090.0,0.4192]
[1761843174365,0.6355058,108100.0,108090.0,0.4192]
[1761843174560,0.06456337,108100.0,108090.0,0.4192]
[1761843174874,0.6257058,108100.0,108090.0,0.4192]
[1761843175073,0.38476337,108100.0,108090.0,0.4192]
[1761843175377,0.77021437,108100.0,108090.0,0.4192]
[1761843175771,1.05021437,108100.0,108090.0,0.4192]
[1761843176674,1.05021437,108100.0,108090.0,0.0584]
[1761843177065,1.24293987,108100.0,108090.0,0.04578]
[1761843177271,1.05021437,108100.0,108090.0,0.05959]
[1761843178677,1.07507455,108100.0,108090.0,0.05959]
[1761843179478,0.93057547,108100.0,108090.0,0.05959]
[1761843180379,0.93057547,108100.0,108090.0,0.42039]
[1761843181882,0.90571529,108100.0,108090.0,0.42039]
[1761843182081,0.91774529,108100.0,108090.0,0.38521]
[1761843182278,0.90571529,108100.0,108090.0,0.40632]
[1761843182580,0.90571529,108100.0,108090.0,0.05933]
[1761843183170,0.58551529,108100.0,108090.0,0.05933]
[1761843183371,0.90571529,108100.0,108090.0,0.05933]
[1761843184680,1.30340547,108100.0,108090.0,0.002]
[1761843185076,0.0341,108080.0,108070.0,0.41772254]
[1761843185276,0.59525192,108080.0,108070.0,0.41772254]
[1761843186786,0.59525192,108080.0,108070.0,0.42072254]
[1761843186982,0.27505192,108080.0,108070.0,0.42072254]
[1761843187187,0.59525192,108080.0,108070.0,0.42472254]
[1761843187584,0.61525192,108080.0,108070.0,0.42472254]
[1761843187888,0.59525192,108080.0,108070.0,0.42472254]
[1761843189189,0.61525192,108080.0,108070.0,0.42472254]
[1761843189489,0.59525192,108080.0,108070.0,0.42472254]
[1761843191891,0.61525192,108080.0,108070.0,0.42472254]
[1761843192391,0.59525192,108080.0,108070.0,0.42472254]
[1761843193192,0.61525192,108080.0,108070.0,0.42472254]
[1761843193788,0.89525192,108080.0,108070.0,0.42472254]
[1761843194183,1.50478384,108080.0,108070.0,0.00710254]
[1761843194389,1.52631577,108080.0,108070.0,0.00710254]
[1761843196003,1.52455577,108080.0,108070.0,0.00410254]
[1761843196289,1.52731577,108080.0,108070.0,0.00410254]
[1761843196796,1.52455577,108080.0,108070.0,0.00410254]
[1761843196992,1.52655577,108080.0,108070.0,0.00010254]
[1761843198401,2.12655577,108080.0,108070.0,0.00010254]
[1761843198591,1.52931577,108080.0,108070.0,0.00010254]
[1761843199100,1.52931577,108080.0,108050.0,0.46737689]
[1761843199101,0.0341,108060.0,108050.0,0.46737689]
[1761843199293,0.61529192,108060.0,108050.0,0.46737689]
[1761843199491,0.76011704,108060.0,108050.0,0.46737689]
[1761843199792,1.23300556,108060.0,108050.0,0.46737689]
[1761843199989,1.23310281,108060.0,108050.0,0.46737689]
[1761843200500,1.23310281,108060.0,108050.0,0.10757689]
[1761843200703,1.23310281,108060.0,108050.0,0.10857689]
[1761843200893,1.24513281,108060.0,108050.0,0.05161689]
[1761843201900,1.24513281,108060.0,108050.0,0.002]
[1761843203396,1.05234411,108060.0,108050.0,0.002]
[1761843203697,1.41314411,108060.0,108050.0,0.002]
[1761843203898,1.41314411,108060.0,108050.0,0.02336]
[1761843204798,1.41314411,108060.0,108050.0,0.002]
[1761843206397,1.43489388,108060.0,108050.0,0.002]
[1761843207997,1.10262388,108060.0,108050.0,0.05797]
[1761843208203,1.42290388,108060.0,108050.0,0.05797]
[1761843208896,1.42290388,108060.0,108050.0,0.04472]
[1761843209097,1.43493388,108060.0,108050.0,0.02336]
[1761843209394,1.43493388,108060.0,108050.0,0.002]
[1761843210003,1.43493388,108060.0,108050.0,0.02336]
[1761843211305,1.42290388,108060.0,108050.0,0.05797]
[1761843212102,1.10262388,108060.0,108050.0,0.05797]
[1761843212304,1.42290388,108060.0,108050.0,0.05797]
[1761843214707,1.5060435,108060.0,108050.0,0.05797]
[1761843215096,1.5060435,108060.0,108050.0,0.04472]
[1761843215296,1.5180735,108060.0,108050.0,0.04472]
[1761843215817,1.5180735,108060.0,108050.0,0.002]
[1761843216405,1.5180735,108060.0,108050.0,0.02336]
[1761843216603,1.5180735,108060.0,108050.0,0.002]
[1761843216909,1.48481613,108060.0,108050.0,0.002]
[1761843217408,1.51801555,108060.0,108050.0,0.002]
[1761843217604,1.52077555,108060.0,108050.0,0.002]
[1761843217797,0.0341,108040.0,108030.0,0.41733]
[1761843217999,1.06207829,108040.0,108030.0,0.41733]
[1761843218202,1.06207829,108040.0,108030.0,0.05653]
[1761843218403,0.0341,108030.0,108020.0,1.87427]
[1761843218599,0.74172663,108030.0,108020.0,1.87427]
[1761843218805,0.74182917,108030.0,108020.0,1.87427]
[1761843219910,0.74182917,108030.0,108020.0,1.87627]
[1761843220112,0.86917074,108030.0,108020.0,1.87827]
[1761843220312,0.06517534,108030.0,108020.0,1.87827]
[1761843220507,0.56917074,108030.0,108020.0,1.87827]
[1761843220707,0.32038254,108030.0,108020.0,2.47827]
[1761843220906,0.00010254,108030.0,108020.0,1.87827]
[1761843221114,0.32038254,108030.0,108020.0,1.87827]
[1761843221315,0.32038254,108030.0,108020.0,1.88103]
[1761843222111,0.51332097,108030.0,108020.0,1.88103]
[1761843222513,0.51332097,108030.0,108020.0,1.87827]
[1761843223014,0.32038254,108030.0,108020.0,1.87827]
[1761843223408,0.00010254,108030.0,108020.0,2.67396843]
[1761843223617,0.6127371,108060.0,108050.0,0.05597]
[1761843223810,1.46059768,108060.0,108050.0,0.05597]
[1761843224914,0.0341,108050.0,108040.0,0.03461]
[1761843225217,0.58874574,108050.0,108040.0,0.05597]
[1761843226108,0.94954574,108050.0,108040.0,0.05597]
[1761843226307,0.94954574,108050.0,108040.0,0.04272]
[1761843226506,0.95054574,108050.0,108040.0,0.04272]
[1761843226715,0.95154574,108050.0,108040.0,0.05597]
[1761843227019,0.59074574,108050.0,108040.0,0.41677]
[1761843227215,0.36370731,108050.0,108040.0,1.01677]
[1761843227614,0.55664574,108050.0,108040.0,1.01677]
[1761843228213,0.02370731,108050.0,108040.0,0.41677]
[1761843228411,0.02370731,108050.0,108040.0,0.41953]
[1761843228611,0.25074574,108050.0,108040.0,0.41677]
[1761843229012,0.23369574,108050.0,108040.0,0.41677]
[1761843229218,0.21664574,108050.0,108040.0,0.41677]
[1761843229523,0.03875731,108050.0,108040.0,0.41777]
[1761843230214,0.44289285,108050.0,108040.0,0.41777]
[1761843230407,0.45994285,108050.0,108040.0,0.41777]
[1761843231023,0.05580731,108050.0,108040.0,0.41777]
[1761843231611,0.45994285,108050.0,108040.0,0.41777]
[1761843232021,0.02170731,108050.0,108040.0,0.41777]
[1761843232322,0.05580731,108050.0,108040.0,0.41777]
[1761843233420,0.02170731,108050.0,108040.0,0.41777]
[1761843235120,0.02170731,108050.0,108040.0,0.42053]
[1761843235511,0.0921969,108070.0,108060.0,0.05952]
[1761843235719,0.37923867,108070.0,108060.0,0.42032]
[1761843235923,0.36218867,108070.0,108060.0,0.42032]
[1761843236721,0.36718867,108070.0,108060.0,0.42032]
[1761843236921,0.35013867,108070.0,108060.0,0.42032]
[1761843237123,0.39369173,108070.0,108060.0,0.42032]
[1761843237427,0.35013867,108070.0,108060.0,0.42032]
[1761843237723,0.35013867,108070.0,108060.0,0.78112]
[1761843238728,0.34713867,108070.0,108060.0,0.78112]
[1761843238927,0.34813867,108070.0,108060.0,0.78112]
[1761843239224,0.02789867,108070.0,108060.0,0.78112]
[1761843239430,0.003,108070.0,108060.0,0.78112]
[1761843239618,0.002,108070.0,108060.0,0.78112]
[1761843240525,0.002,108070.0,108060.0,0.78388]
[1761843240728,0.0580969,108080.0,108070.0,0.05952]
[1761843241034,0.02489867,108080.0,108070.0,0.42032]
[1761843241438,0.0580969,108080.0,108070.0,0.42032]
[1761843241730,0.02489867,108080.0,108070.0,0.42032]
[1761843241923,0.02791393,108080.0,108070.0,0.42032]
[1761843243322,0.04496393,108080.0,108070.0,0.42032]
[1761843243523,0.06301393,108080.0,108070.0,1.02032]
[1761843243732,0.06301393,108080.0,108070.0,0.42032]
[1761843243920,0.46714947,108080.0,108070.0,0.42032]
[1761843244120,0.46714947,108080.0,108070.0,0.42132]
[1761843244121,0.46614947,108080.0,108070.0,0.42132]
[1761843244421,0.02491393,108080.0,108070.0,0.42232]
[1761843244617,0.02491393,108080.0,108070.0,0.5148607]
[1761843244822,0.02491393,108080.0,108070.0,1.02232]
[1761843245028,0.02491393,108080.0,108070.0,1.02508]
[1761843245230,0.02491393,108080.0,108070.0,0.42508]
[1761843245435,0.02491393,108080.0,108070.0,0.42232]
[1761843245616,0.75843554,108090.0,108080.0,0.0462]
[1761843245822,0.72433554,108090.0,108080.0,0.42032]
[1761843246729,0.75843554,108090.0,108080.0,0.42032]
[1761843246934,0.3543,108090.0,108080.0,0.42032]
[1761843247633,0.37564687,108090.0,108080.0,0.42032]
[1761843248333,0.37664687,108090.0,108080.0,0.42032]
[1761843249929,0.78078241,108090.0,108080.0,0.42032]
[1761843250933,0.37664687,108090.0,108080.0,0.42032]
[1761843251331,0.55235346,108090.0,108080.0,0.42032]
[1761843252028,0.53530346,108090.0,108080.0,0.42032]
[1761843252431,0.53430346,108090.0,108080.0,0.42232]
[1761843252740,0.55135346,108090.0,108080.0,0.42232]
[1761843254040,0.56840346,108090.0,108080.0,0.42232]
[1761843257439,0.77953999,108090.0,108080.0,0.42232]
[1761843261142,0.34154687,108090.0,108080.0,0.42232]
[1761843261530,0.37564687,108090.0,108080.0,0.42232]
[1761843261735,0.77953999,108090.0,108080.0,0.42232]
[1761843262734,0.37564687,108090.0,108080.0,0.42232]
[1761843263344,0.64152745,108090.0,108080.0,0.42232]
[1761843267249,0.98654745,108090.0,108080.0,0.40891]
[1761843267441,0.98654745,108090.0,108080.0,0.42227]
[1761843267442,0.72472568,108090.0,108080.0,0.42227]
[1761843267854,0.69152745,108090.0,108080.0,0.42227]
[1761843268051,0.72472568,108090.0,108080.0,0.42227]
[1761843268353,0.72472568,108090.0,108080.0,0.42127]
[1761843268551,0.72572568,108090.0,108080.0,0.42127]
[1761843268850,0.3673008,108090.0,108080.0,0.42127]
[1761843269154,0.4014008,108090.0,108080.0,0.42127]
[1761843269745,0.64236745,108090.0,108080.0,0.42127]
[1761843270145,0.64236745,108090.0,108080.0,0.42027]
[1761843271856,0.61745352,108090.0,108080.0,0.42027]
[1761843272159,0.60040352,108090.0,108080.0,0.42027]
[1761843272354,0.34238687,108090.0,108080.0,0.42027]
[1761843272664,0.02234687,108090.0,108080.0,1.02303]
[1761843272850,0.02234687,108090.0,108080.0,1.02027]
[1761843273548,0.02234687,108090.0,108080.0,1.02945152]
[1761843274256,0.02134687,108090.0,108080.0,1.03045152]
[1761843274562,0.02134687,108090.0,108080.0,1.35149152]
[1761843274755,0.02134687,108090.0,108080.0,1.34231]
[1761843274949,0.05544687,108090.0,108080.0,1.34231]
[1761843275261,0.02134687,108090.0,108080.0,1.34231]
[1761843275758,0.05544687,108090.0,108080.0,1.34231]
[1761843276161,0.02134687,108090.0,108080.0,1.34231]
[1761843276857,0.02134687,108090.0,108080.0,1.02227]
[1761843277362,0.21406579,108090.0,108080.0,1.21498892]
[1761843277562,0.02134687,108090.0,108080.0,0.90300004]
[1761843278059,0.02491393,108100.0,108090.0,0.05747]
[1761843278363,0.02491393,108100.0,108090.0,0.93102892]
[1761843278548,0.21763285,108100.0,108090.0,0.93102892]
[1761843278753,0.21763285,108100.0,108090.0,0.96433007]
[1761843279064,0.23468285,108100.0,108090.0,0.77161115]
[1761843279268,0.23468285,108100.0,108090.0,0.73831]
[1761843279562,0.21763285,108100.0,108090.0,0.73831]
[1761843279763,0.21863285,108100.0,108090.0,0.73831]
[1761843280355,0.21863285,108100.0,108090.0,0.93102892]
[1761843280559,0.21863285,108100.0,108090.0,0.96433007]
[1761843280863,0.21863285,108100.0,108090.0,0.64429007]
[1761843281359,0.21863285,108100.0,108090.0,0.61098892]
[1761843281664,0.21763285,108100.0,108090.0,0.61198892]
[1761843281864,0.19271892,108100.0,108090.0,0.69490696]
[1761843282968,0.19271892,108100.0,108090.0,0.69766696]
[1761843283167,0.19271892,108100.0,108090.0,0.69490696]
[1761843283357,0.19271892,108100.0,108090.0,0.64529007]
[1761843283557,0.19271892,108100.0,108090.0,0.69490696]
[1761843283859,0.19271892,108100.0,108090.0,0.64629007]
[1761843285462,0.19271892,108100.0,108090.0,2.14629007]
[1761843286361,0.32004,108110.0,108100.0,0.02118]
[1761843286569,0.32004,108110.0,108100.0,0.61098892]
[1761843286765,0.52980892,108110.0,108100.0,0.61098892]
[1761843287067,0.54685892,108110.0,108100.0,0.41827]
[1761843287471,0.54785892,108110.0,108100.0,0.41827]
[1761843288263,0.54685892,108110.0,108100.0,0.42127]
[1761843288764,0.54685892,108110.0,108100.0,0.41927]
[1761843289369,0.32004,108110.0,108100.0,0.41927]
[1761843289670,0.53080892,108110.0,108100.0,0.41827]
[1761843289972,0.51375892,108110.0,108100.0,0.41827]
[1761843290271,0.54785892,108110.0,108100.0,0.41827]
[1761843291273,0.54785892,108110.0,108100.0,0.42027]
[1761843291274,0.54685892,108110.0,108100.0,0.42027]
[1761843292777,0.51275892,108110.0,108100.0,0.42027]
[1761843293278,0.52980892,108110.0,108100.0,0.42027]
[1761843293576,0.51275892,108110.0,108100.0,0.42027]
[1761843293772,0.22710579,108120.0,108110.0,0.05656]
[1761843293773,0.19271892,108120.0,108110.0,0.05656]
[1761843293973,0.19271892,108120.0,108110.0,0.61007892]
[1761843294275,0.19271892,108120.0,108110.0,0.41736]
[1761843294466,0.20976892,108120.0,108110.0,0.41736]
[1761843294667,0.22681892,108120.0,108110.0,0.41736]
[1761843295677,0.22681892,108120.0,108110.0,0.41936]
[1761843296272,0.41953784,108120.0,108110.0,0.41936]
[1761843296675,0.0341,108120.0,108110.0,0.41936]
[1761843296980,0.41953784,108120.0,108110.0,0.41936]
[1761843298781,0.0341,108120.0,108110.0,0.41936]
[1761843298980,0.41953784,108120.0,108110.0,0.41936]
[1761843299277,0.43953784,108120.0,108110.0,0.05956]
[1761843299582,0.41953784,108120.0,108110.0,0.42036]
[1761843300971,0.44229784,108120.0,108110.0,0.02489]
[1761843301184,1.40068009,108120.0,108110.0,0.003]
[1761843301881,1.42564841,108120.0,108110.0,0.003]
[1761843302479,1.42564841,108120.0,108110.0,0.001]
[1761843302679,0.0341,108100.0,108090.0,1.87416]
[1761843302889,1.25706609,108100.0,108090.0,1.8608]
[1761843303180,1.61786609,108100.0,108090.0,1.5]
[1761843303384,1.61786609,108100.0,108070.0,0.45066115]
[1761843303385,0.0341,108080.0,108070.0,0.45066115]
[1761843303577,1.59293676,108080.0,108070.0,0.05656]
[1761843303883,0.04613,108070.0,108060.0,0.39624]
[1761843304181,0.74293206,108070.0,108060.0,0.3608]
[1761843304980,0.74293206,108070.0,108060.0,0.41736]
[1761843304981,0.53818314,108070.0,108060.0,0.41736]
[1761843305486,0.56806314,108070.0,108060.0,0.41736]
[1761843305879,0.56906314,108070.0,108060.0,0.41836]
[1761843306382,0.57839158,108070.0,108060.0,0.41736]
[1761843306979,0.56906314,108070.0,108060.0,0.41736]
[1761843307181,0.03941422,108070.0,108060.0,0.41736]
[1761843307382,0.20976892,108080.0,108070.0,0.05656]
[1761843307587,0.21407477,108080.0,108070.0,0.61007892]
[1761843307777,0.53399477,108080.0,108070.0,0.61007892]
[1761843308590,0.56809477,108080.0,108070.0,0.61007892]
[1761843308789,0.56809477,108080.0,108070.0,0.41736]
[1761843309288,0.35832585,108080.0,108070.0,0.41936]
[1761843309681,0.61634478,108080.0,108070.0,0.42036]
[1761843310290,0.74634478,108080.0,108070.0,0.42036]
[1761843310786,0.92837478,108080.0,108070.0,0.42036]
[1761843310987,0.91634478,108080.0,108070.0,0.42036]
[1761843311179,0.91634478,108080.0,108070.0,0.3638]
[1761843311385,1.17210371,108080.0,108070.0,0.003]
[1761843312087,1.51154786,108080.0,108070.0,0.003]
[1761843312488,1.26881893,108080.0,108070.0,0.02289]
[1761843312790,0.89598893,108080.0,108070.0,0.05656]
[1761843314591,1.49598893,108080.0,108070.0,0.05656]
[1761843314779,1.25502,108080.0,108070.0,0.05656]
[1761843315184,1.49598893,108080.0,108070.0,0.05656]
[1761843317495,1.85678893,108080.0,108070.0,0.05656]
[1761843317887,1.85678893,108080.0,108070.0,0.05675]
[1761843318089,1.25678893,108080.0,108070.0,0.05675]
[1761843318397,1.01582,108080.0,108070.0,0.05675]
[1761843318593,1.26881893,108080.0,108070.0,0.02189]
[1761843318797,1.25678893,108080.0,108070.0,0.05675]
[1761843319492,1.25682893,108080.0,108070.0,0.05675]
[1761843320501,0.4159,108080.0,108070.0,0.05675]
[1761843320799,0.59602893,108080.0,108070.0,0.10636689]
[1761843320995,0.59602893,108080.0,108070.0,0.46716689]
[1761843321193,0.35506,108080.0,108070.0,0.46716689]
[1761843322000,0.35406,108080.0,108070.0,0.41855]
[1761843322301,0.0341,108090.0,108080.0,0.05838]
[1761843322489,0.3541,108090.0,108080.0,0.41918]
[1761843323297,0.02153424,108090.0,108080.0,0.41918]
[1761843323898,0.02153424,108090.0,108080.0,0.42018]
[1761843324297,0.37898933,108110.0,108100.0,0.05838]
[1761843324499,0.37898933,108110.0,108100.0,0.41918]
[1761843324800,0.39898933,108110.0,108100.0,0.41918]
[1761843325604,1.04271001,108110.0,108100.0,0.41918]
[1761843325802,0.78271001,108110.0,108100.0,0.41918]
[1761843326389,0.80271001,108110.0,108100.0,0.41918]
[1761843326601,0.80271001,108110.0,108100.0,0.05838]
[1761843326803,0.78271001,108110.0,108100.0,0.05838]
[1761843326996,0.78271001,108110.0,108100.0,0.41918]
[1761843327196,0.83271001,108110.0,108100.0,0.41918]
[1761843328703,0.42898933,108110.0,108100.0,0.41918]
[1761843328900,0.02492933,108110.0,108100.0,0.41918]
[1761843329503,0.0332391,108120.0,108110.0,0.05838]
[1761843329702,0.0332391,108120.0,108110.0,0.41918]
[1761843330910,0.0673391,108120.0,108110.0,0.41918]
[1761843331407,0.49105978,108120.0,108110.0,0.05838]
[1761843331708,0.77105978,108120.0,108110.0,0.05838]
[1761843331908,0.82094203,108120.0,108110.0,0.05838]
[1761843332210,0.77105978,108120.0,108110.0,0.05838]
[1761843332600,0.82094203,108120.0,108110.0,0.05838]
[1761843332907,0.52094203,108120.0,108110.0,0.05838]
[1761843333503,0.52094203,108120.0,108110.0,0.05938]
[1761843334008,0.65094203,108120.0,108110.0,0.05838]
[1761843335207,0.01705,108110.0,108100.0,0.3745]
[1761843335409,0.92097978,108110.0,108100.0,0.41918]
[1761843335613,0.75774068,108110.0,108100.0,0.05838]
[1761843336306,0.77910632,108110.0,108100.0,0.05838]
[1761843336814,0.77910632,108110.0,108100.0,0.42118]
[1761843337717,0.37534564,108110.0,108100.0,0.38611]
[1761843337912,0.81732542,108110.0,108100.0,0.002]
[1761843338108,0.83230542,108110.0,108100.0,0.06038]
[1761843338319,1.09230542,108110.0,108100.0,0.06038]
[1761843338720,1.09732542,108110.0,108100.0,0.002]
[1761843339620,1.09732542,108110.0,108100.0,0.02531]
[1761843339816,1.09230542,108110.0,108100.0,0.05938]
[1761843340316,0.68858474,108110.0,108100.0,0.05938]
[1761843340819,1.09230542,108110.0,108100.0,0.05838]
[1761843345731,1.07093978,108110.0,108100.0,0.05838]
[1761843346334,0.0673391,108110.0,108100.0,0.41918]
[1761843346535,0.35398,108110.0,108100.0,0.41918]
[1761843347632,0.35398,108110.0,108100.0,0.42018]
[1761843347835,0.35398,108110.0,108100.0,0.42118]
[1761843349140,0.33693,108110.0,108100.0,0.42118]
[1761843349330,0.31988,108110.0,108100.0,0.42118]
[1761843349735,0.33693,108110.0,108100.0,0.42118]
[1761843349934,0.31988,108110.0,108100.0,0.42118]
[1761843350130,0.0673391,108120.0,108110.0,0.05838]
[1761843350331,0.3872191,108120.0,108110.0,0.41918]
[1761843351839,0.40386225,108120.0,108110.0,0.41918]
[1761843352940,0.38681225,108120.0,108110.0,0.41918]
[1761843353339,0.40386225,108120.0,108110.0,0.41918]
[1761843354140,0.3872688,108120.0,108110.0,0.41918]
[1761843354337,0.35398,108120.0,108110.0,0.41918]
[1761843355939,0.35398,108120.0,108110.0,0.42018]
[1761843356640,0.35398,108120.0,108110.0,0.42118]
[1761843357030,0.31988,108120.0,108110.0,0.42118]
[1761843357436,0.52099173,108140.0,108130.0,0.05639]
[1761843357638,1.14083173,108140.0,108130.0,0.05639]
[1761843357936,0.73711105,108140.0,108130.0,0.05639]
[1761843358242,0.3872288,108140.0,108130.0,0.05639]
[1761843358443,0.4272288,108140.0,108130.0,0.41719]
[1761843360141,0.3872288,108140.0,108130.0,0.41719]
[1761843360342,0.0332888,108140.0,108130.0,0.5096795]
[1761843360540,0.0332888,108150.0,108140.0,0.05639]
[1761843360745,0.0673888,108150.0,108140.0,0.41719]
[1761843360947,0.0332888,108150.0,108140.0,0.41719]
[1761843361248,0.0332888,108150.0,108140.0,0.512431]
[1761843361441,0.08398225,108160.0,108150.0,0.05639]
[1761843361636,0.04349654,108160.0,108150.0,0.41719]
[1761843361946,0.0341,108160.0,108150.0,0.41719]
[1761843362347,0.3539,108170.0,108160.0,0.05639]
[1761843362549,0.3539,108170.0,108160.0,0.41719]
[1761843363342,0.75762068,108170.0,108160.0,0.41719]
[1761843364145,0.76679493,108170.0,108160.0,0.41719]
[1761843365541,0.01705,108160.0,108150.0,0.39565]
[1761843365736,0.43782068,108160.0,108150.0,0.41719]
[1761843366043,0.45782068,108160.0,108150.0,0.41719]
[1761843366248,0.43782068,108160.0,108150.0,0.05639]
[1761843366435,0.70782068,108160.0,108150.0,0.05639]
[1761843366640,0.45782068,108160.0,108150.0,0.05639]
[1761843366944,0.61782068,108160.0,108150.0,0.05839]
[1761843367149,0.62560068,108160.0,108150.0,0.002]
[1761843367341,0.62284068,108160.0,108150.0,0.002]
[1761843367844,0.61782068,108160.0,108150.0,0.05839]
[1761843368846,0.61782068,108160.0,108150.0,0.05739]
[1761843369440,0.61782068,108160.0,108150.0,0.05639]
[1761843369948,0.2141,108160.0,108150.0,0.41719]
[1761843370148,0.53386,108160.0,108150.0,0.41719]
[1761843371648,0.53386,108160.0,108150.0,0.05639]
[1761843371845,0.93758068,108160.0,108150.0,0.05639]
[1761843372748,0.93758068,108160.0,108150.0,0.02109]
[1761843373052,0.0341,108150.0,108140.0,0.41719]
[1761843373248,0.43782068,108150.0,108140.0,0.3608]
[1761843373454,0.43782068,108150.0,108140.0,0.41719]
[1761843374052,0.55782068,108150.0,108140.0,0.41719]
[1761843374256,0.55782068,108150.0,108140.0,0.41819]
[1761843374947,0.55782068,108150.0,108140.0,0.41719]
[1761843376152,0.43782068,108150.0,108140.0,0.41719]
[1761843376854,0.68782068,108150.0,108140.0,0.41719]
[1761843378854,0.68782068,108150.0,108140.0,0.38189]
[1761843379161,0.68782068,108150.0,108140.0,0.3608]
[1761843380247,0.68782068,108150.0,108130.0,0.37456]
[1761843380453,0.0341,108130.0,108120.0,0.45325181]
[1761843381653,0.0341,108130.0,108120.0,0.45525181]
[1761843381859,0.35382,108140.0,108130.0,0.05877]
[1761843382161,0.35382,108140.0,108130.0,0.41957]
[1761843383049,0.35382,108140.0,108130.0,0.42057]
[1761843383356,0.35382,108140.0,108130.0,0.45385181]
[1761843383750,0.0341,108150.0,108140.0,0.05877]
[1761843383956,0.64386,108150.0,108140.0,0.05877]
[1761843384552,1.04758068,108150.0,108140.0,0.05877]
[1761843385357,0.8845748,108150.0,108140.0,0.05877]
[1761843387962,0.8845748,108150.0,108140.0,0.41957]
[1761843388261,0.5945748,108150.0,108140.0,0.41957]
[1761843388560,0.35386,108150.0,108140.0,0.41957]
[1761843389662,0.37879483,108150.0,108140.0,0.41957]
[1761843389961,0.05903483,108150.0,108140.0,0.41957]
[1761843390158,0.37879483,108150.0,108140.0,0.41957]
[1761843390364,0.05903483,108150.0,108140.0,0.45285181]
[1761843390560,0.34469483,108150.0,108140.0,0.45285181]
[1761843390863,0.31976,108150.0,108140.0,0.45285181]
[1761843391255,0.31976,108150.0,108140.0,0.45561181]
[1761843391453,0.31976,108150.0,108140.0,0.54809251]
[1761843391768,0.34469483,108160.0,108150.0,0.05877]
[1761843391956,0.34469483,108160.0,108150.0,0.41957]
[1761843392460,0.02493483,108160.0,108150.0,0.41957]
[1761843395263,0.02493483,108160.0,108150.0,1.1120422]
[1761843395464,0.02493483,108160.0,108150.0,1.01957]
[1761843396663,0.05903483,108160.0,108150.0,1.01957]
[1761843396863,0.29974963,108160.0,108150.0,0.41957]
[1761843399662,0.05903483,108160.0,108150.0,0.41957]
[1761843399863,0.29974963,108160.0,108150.0,0.41957]
[1761843401570,0.2997494,108160.0,108150.0,0.41957]
[1761843401869,0.30806249,108160.0,108150.0,0.41957]
[1761843404167,0.06734769,108160.0,108150.0,0.41957]
[1761843404370,0.30806249,108160.0,108150.0,0.41957]
[1761843405168,0.43806249,108160.0,108150.0,0.41957]
[1761843405358,0.30806249,108160.0,108150.0,0.41957]
[1761843406167,0.45469705,108160.0,108150.0,0.41957]
[1761843406366,0.65971705,108160.0,108150.0,0.39747]
[1761843406662,0.65971705,108160.0,108150.0,0.41957]
[1761843406863,0.65469705,108160.0,108150.0,0.41957]
[1761843407370,0.08398225,108160.0,108150.0,0.41957]
[1761843407663,0.11721583,108160.0,108150.0,0.41957]
[1761843407866,0.35299358,108160.0,108150.0,0.41957]
[1761843408266,0.03323358,108160.0,108150.0,0.41957]
[1761843409469,0.03323358,108160.0,108150.0,0.42457]
[1761843409860,0.0581545,108160.0,108150.0,0.42457]
[1761843411469,0.03323358,108160.0,108150.0,0.42457]
[1761843411965,0.61957575,108170.0,108160.0,0.05833]
[1761843412172,0.61957575,108170.0,108160.0,0.41913]
[1761843413261,0.61957575,108170.0,108160.0,0.42113]
[1761843413672,0.37886095,108170.0,108160.0,0.42113]
[1761843413971,0.61957575,108170.0,108160.0,0.42113]
[1761843414674,0.37886095,108170.0,108160.0,0.42113]